Business Unit,Business Code,Service Code,Service Label,Organisational Unit,Expenditure,Net Payments,Transaction Number,Payment Date,Supplier ID,Supplier Name
North West Leicestershire District Council,31UH,CULTEV,Leisure & Culture,Cultural Services Arts & Events,Expenditure against earmarked reserve,"1,000.00",1295384,05/11/2014,A030553,Sir John Moore Foundation
North West Leicestershire District Council,31UH,EEHL,Environmental Health,Environmental Health & Licensing,Grants,"3,981.27",1295406,05/11/2014,A038668,Adaptions
North West Leicestershire District Council,31UH,FINPLA,Finance,Financial Planning,Consultation,"9,495.00",1295421,05/11/2014,A035603,Arlingclose Ltd
North West Leicestershire District Council,31UH,HPLC,Leisure Centres,Hood Park Leisure Centre,Telephone Charge / Rental,624.39,1295438,05/11/2014,A035373,Virgin Media Business
North West Leicestershire District Council,31UH,HRAHRM,Housing Repairs,HRA Housing Repairs & Maintenance,Consultants Fees,"1,848.24",1295549,05/11/2014,A039973,Lovell Partnerships Ltd
North West Leicestershire District Council,31UH,HRAHM,Housing,HRA Housing Management,Contract Cleaning,"5,360.15",1295555,05/11/2014,A000950,Leicestershire County Council
North West Leicestershire District Council,31UH,HRAHRM,Housing Repairs,HRA Housing Repairs & Maintenance,Tipping Charges,974.70,1295560,05/11/2014,A035471,Ward Recycling
North West Leicestershire District Council,31UH,LDLS,Legal & Democratic,Legal Services,External Legal Fees & Advice,"14,036.80",1295490,05/11/2014,A041876,Marrons Shakespeares
North West Leicestershire District Council,31UH,CS,Communications,Corporate - Customer Services,Postal Collection,"3,495.00",1295653,05/11/2014,A001418,Royal Mail Group Plc
North West Leicestershire District Council,31UH,NACCS,Neighbourhoods & Communities,N & C Community Safety,Expenditure against earmarked reserve,500.00,1295371,05/11/2014,A030872,Ashby Ivanhoe FC
North West Leicestershire District Council,31UH,EXCH,Finance,Exchequer Services,Agency Staff,"16,549.70",1295370,05/11/2014,A036958,Comensura Limited
North West Leicestershire District Council,31UH,EXCH,Finance,Exchequer Services,Gas,"2,935.78",1295636,04/11/2014,A000958,ESPO
North West Leicestershire District Council,31UH,ICT,Information Technology,ICT Services,Telephone Charge / Rental,"5,568.25",1295755,12/11/2014,A008908,Virgin Media Business
North West Leicestershire District Council,31UH,EXCH,Finance,Exchequer Services,Gas,"10,382.73",1295637,04/11/2014,A035709,Corona Energy Retail 4 Ltd
North West Leicestershire District Council,31UH,EXCH,Finance,Exchequer Services,Agency Staff,"18,173.07",1295782,12/11/2014,A036958,Comensura Limited
North West Leicestershire District Council,31UH,LDLS,Legal & Democratic,Legal Services,Books & Publications,"2,305.00",1295937,12/11/2014,A001611,Sweet & Maxwell Ltd
North West Leicestershire District Council,31UH,ICT,Information Technology,ICT Services,Equipment Operating Leases,"4,549.96",1295938,12/11/2014,A040459,Canon UK Ltd
North West Leicestershire District Council,31UH,HRAHM,Housing,HRA Housing Management,Contract Cleaning,"1,858.66",1295709,12/11/2014,A000950,Leicestershire County Council
North West Leicestershire District Council,31UH,PROPFM,Property Services,Property Facilities Management,Electricity,"4,316.40",1295981,12/11/2014,A030266,Southern Electric
North West Leicestershire District Council,31UH,EPP,Planning & Development,Environment Planning Policy,Planning Application - Charges,770.00,1295991,12/11/2014,A041794,Peveril Homes Ltd
North West Leicestershire District Council,31UH,HLC,Leisure Centres,Hermitage Leisure Centre,Water Charges (Metered),"1,741.91",1295993,12/11/2014,A001468,Severn Trent Water Limited
North West Leicestershire District Council,31UH,CP,Communications,Corporate - Communications,Postages,"3,000.00",1296056,12/11/2014,A000079,Neopost Limited
North West Leicestershire District Council,31UH,HRAHRM,Housing Repairs,HRA Housing Repairs & Maintenance,Housing Repairs,"444,726.00",1296060,12/11/2014,A039973,Lovell Partnerships Ltd
North West Leicestershire District Council,31UH,NACN,Neighbourhoods & Communities,N & C Neighbourhoods,Sence Valley,"3,750.00",1295941,12/11/2014,A037029,Hugglescote & Donington Allotments
North West Leicestershire District Council,31UH,LDELC,Legal & Democratic,Electoral & Land Charges,Training Expenses,715.00,1295944,12/11/2014,A033402,The Association of Electoral Administrat
North West Leicestershire District Council,31UH,EES,Environmental Health,Environmental Services,Grants,"10,000.00",1295949,12/11/2014,A027781,J Rennocks & Son Ltd
North West Leicestershire District Council,31UH,EXCH,Finance,Exchequer Services,Other Miscellaneous Expenses,"2,272.25",1295955,12/11/2014,A010859,Selima Limited
North West Leicestershire District Council,31UH,EES,Environmental Health,Environmental Services,Grants,"3,720.00",1295957,12/11/2014,A041886,PC Barry Building Contractors
North West Leicestershire District Council,31UH,PROPCL,Property Services,Property Commercial Lettings,Telephones,646.49,1295973,12/11/2014,A000233,British Telecommunications P
North West Leicestershire District Council,31UH,ICT,Information Technology,ICT Services,Photo Copier - Copy Charges Rental,642.76,1296099,13/11/2014,A001301,The Danwood Group Ltd
North West Leicestershire District Council,31UH,HRAHM,Housing,HRA Housing Management,Legal & Professional Services,"2,690.00",1296100,13/11/2014,A033955,HMCTS
North West Leicestershire District Council,31UH,EXCH,Finance,Exchequer Services,Alarm System Telephones,"5,132.25",1296104,13/11/2014,A000233,British Telecommunications P
North West Leicestershire District Council,31UH,EXCH,Finance,Exchequer Services,Agency Staff,"16,352.43",1296132,19/11/2014,A036958,Comensura Limited
North West Leicestershire District Council,31UH,EES,Environmental Health,Environmental Services,Hire Of Operational Equipment,"1,050.00",1296076,19/11/2014,A026192,Leicestershire & Rutland
North West Leicestershire District Council,31UH,CULTHC,Leisure & Culture,Cultural Services Heritage,Grants,500.00,1296082,19/11/2014,A041897,Regimental Charitable Fund
North West Leicestershire District Council,31UH,HRAHRM,Housing Repairs,HRA Housing Repairs & Maintenance,Housing Repairs,"558,471.19",1296102,19/11/2014,A039980,Kier Services Maintenance East Ltd
North West Leicestershire District Council,31UH,EXCH,Finance,Exchequer Services,Collection - Cash,"1,216.65",1296144,19/11/2014,A004468,Kings Armoured Security Ser
North West Leicestershire District Council,31UH,LDLS,Legal & Democratic,Legal Services,Legal & Professional Services,"1,568.00",1296236,19/11/2014,A000251,Browne Jacobson
North West Leicestershire District Council,31UH,HLC,Leisure Centres,Hermitage Leisure Centre,Water Charges (Metered),673.00,1296167,19/11/2014,A001468,Severn Trent Water Limited
North West Leicestershire District Council,31UH,ENOT,Street Management,Environment Transport,Repairs - Parts,"1,121.12",1294133,19/11/2014,A035291,Mertrux
North West Leicestershire District Council,31UH,HRAHM,Housing,HRA Housing Management,General Repairs,"1,703.00",1296778,19/11/2014,A034116,A J Contracts
North West Leicestershire District Council,31UH,EES,Environmental Health,Environmental Services,Stray Dog Service,"1,535.14",1296789,19/11/2014,A000385,College Garth Boarding Kenn
North West Leicestershire District Council,31UH,CS,Communications,Corporate - Customer Services,Postages,"4,000.00",1296813,19/11/2014,A000079,Neopost Limited
North West Leicestershire District Council,31UH,HRAHRM,Housing Repairs,HRA Housing Repairs & Maintenance,Housing Repairs,"533,946.60",1296224,19/11/2014,A039973,Lovell Partnerships Ltd
North West Leicestershire District Council,31UH,HPLC,Leisure Centres,Hood Park Leisure Centre,Electricity,"1,455.43",1296231,19/11/2014,A030266,Southern Electric
North West Leicestershire District Council,31UH,EXCH,Finance,Exchequer Services,Agency Staff,"16,447.87",1296831,26/11/2014,A036958,Comensura Limited
North West Leicestershire District Council,31UH,ECCTV,Planning & Development,Environment - Town Centre/CCTV,Electricity,"1,117.22",1296835,26/11/2014,A030266,Southern Electric
North West Leicestershire District Council,31UH,HPLC,Leisure Centres,Hood Park Leisure Centre,Water Charges (Metered),"1,245.46",1296250,19/11/2014,A001468,Severn Trent Water Limited
North West Leicestershire District Council,31UH,HPLC,Leisure Centres,Hood Park Leisure Centre,Water Charges (Metered),830.00,1296251,19/11/2014,A001468,Severn Trent Water Limited
North West Leicestershire District Council,31UH,HPLC,Leisure Centres,Hood Park Leisure Centre,Water Charges (Metered),830.00,1296252,19/11/2014,A001468,Severn Trent Water Limited
North West Leicestershire District Council,31UH,CULTEV,Leisure & Culture,Cultural Services Arts & Events,Other Miscellaneous Expenses,550.00,1296847,26/11/2014,A041913,Hermitage FM
North West Leicestershire District Council,31UH,ECCTV,Planning & Development,Environment - Town Centre/CCTV,Water Charges (Metered),516.65,1296863,26/11/2014,A001468,Severn Trent Water Limited
North West Leicestershire District Council,31UH,HLC,Leisure Centres,Hermitage Leisure Centre,Water Charges (Metered),673.00,1296875,26/11/2014,A001468,Severn Trent Water Limited
North West Leicestershire District Council,31UH,CULTYP,Leisure & Culture,Cultural Services Children & YoungPeople,Play equipment,500.00,1296845,26/11/2014,A039744,Oakthorpe youth Club
North West Leicestershire District Council,31UH,FINPLA,Finance,Financial Planning,Miscellaneous Insurances,740.33,1296896,26/11/2014,A038616,Hugglescote & Donington Le Heath
North West Leicestershire District Council,31UH,EXCH,Finance,Exchequer Services,Electricity,"1,917.87",1296897,26/11/2014,A034733,British Gas Business
North West Leicestershire District Council,31UH,HLC,Leisure Centres,Hermitage Leisure Centre,Electricity,"3,088.92",1296899,26/11/2014,A030266,Southern Electric
North West Leicestershire District Council,31UH,EES,Environmental Health,Environmental Services,Grants,"1,072.69",1296976,26/11/2014,A038668,Adaptions
North West Leicestershire District Council,31UH,HRAPBS,Housing,HRA Performance & Business Support,Legal & Professional Services,"1,072.00",1296985,26/11/2014,A000251,Browne Jacobson
North West Leicestershire District Council,31UH,EES,Environmental Health,Environmental Services,Grants,"10,200.00",1296990,26/11/2014,A027781,J Rennocks & Son Ltd
North West Leicestershire District Council,31UH,PROPFM,Property Services,Property Facilities Management,Water Charges (Metered),"2,246.19",1297055,26/11/2014,A001468,Severn Trent Water Limited
North West Leicestershire District Council,31UH,LDLS,Legal & Democratic,Legal Services,External Legal Fees & Advice,"2,009.40",1297203,26/11/2014,A041876,Marrons Shakespeares
North West Leicestershire District Council,31UH,LDLS,Legal & Democratic,Legal Services,Computing,981.35,1297204,26/11/2014,A037595,Thomson Reuters (Professional) UK Limite
North West Leicestershire District Council,31UH,HRAHRM,Housing Repairs,HRA Housing Repairs & Maintenance,General Materials,"46,752.59",1297038,25/11/2014,A036453,Collective Enterprises Ltd
North West Leicestershire District Council,31UH,HRAHRM,Housing Repairs,HRA Housing Repairs & Maintenance,Supply and fit of Doors,539.91,1295515,05/11/2014,A038041,I G Doors Limited
North West Leicestershire District Council,31UH,HRAHRM,Housing Repairs,HRA Housing Repairs & Maintenance,Supply and fit of Doors,539.91,1295517,05/11/2014,A038041,I G Doors Limited
North West Leicestershire District Council,31UH,HRAHRM,Housing Repairs,HRA Housing Repairs & Maintenance,Supply and fit of Doors,685.75,1295519,05/11/2014,A038041,I G Doors Limited
North West Leicestershire District Council,31UH,HRAHRM,Housing Repairs,HRA Housing Repairs & Maintenance,Supply and fit of Doors,539.91,1295509,05/11/2014,A038041,I G Doors Limited
North West Leicestershire District Council,31UH,HRAHRM,Housing Repairs,HRA Housing Repairs & Maintenance,Window Repair and Maintenance,622.26,1295501,05/11/2014,A036741,SBP Limited (Trading as Plastal & Permad
North West Leicestershire District Council,31UH,HRAHRM,Housing Repairs,HRA Housing Repairs & Maintenance,Window Repair and Maintenance,987.66,1295500,05/11/2014,A036741,SBP Limited (Trading as Plastal & Permad
North West Leicestershire District Council,31UH,HRAHRM,Housing Repairs,HRA Housing Repairs & Maintenance,Window Repair and Maintenance,542.10,1295499,05/11/2014,A036741,SBP Limited (Trading as Plastal & Permad
North West Leicestershire District Council,31UH,HRAHRM,Housing Repairs,HRA Housing Repairs & Maintenance,Window Repair and Maintenance,514.34,1295498,05/11/2014,A036741,SBP Limited (Trading as Plastal & Permad
North West Leicestershire District Council,31UH,HRAHRM,Housing Repairs,HRA Housing Repairs & Maintenance,Contract Payments (Dws) Ext,"34,555.00",1295492,05/11/2014,A028261,TECSERV UK LIMITED
North West Leicestershire District Council,31UH,HRAHRM,Housing Repairs,HRA Housing Repairs & Maintenance,Contract Payments (Dws) Ext,"27,569.60",1295491,05/11/2014,A028261,TECSERV UK LIMITED
North West Leicestershire District Council,31UH,HRAHRM,Housing Repairs,HRA Housing Repairs & Maintenance,Supply and fit of Doors,685.75,1295528,05/11/2014,A038041,I G Doors Limited
North West Leicestershire District Council,31UH,HRAHRM,Housing Repairs,HRA Housing Repairs & Maintenance,Housing repairs,"1,206.07",1295531,05/11/2014,A031787,Laker BMS Ltd
North West Leicestershire District Council,31UH,HRAHRM,Housing Repairs,HRA Housing Repairs & Maintenance,Housing repairs,"1,396.68",1295535,05/11/2014,A031787,Laker BMS Ltd
North West Leicestershire District Council,31UH,HRAHRM,Housing Repairs,HRA Housing Repairs & Maintenance,Housing repairs,"1,138.50",1295880,12/11/2014,A031787,Laker BMS Ltd
North West Leicestershire District Council,31UH,HRAHRM,Housing Repairs,HRA Housing Repairs & Maintenance,Housing repairs,672.51,1295883,12/11/2014,A031787,Laker BMS Ltd
North West Leicestershire District Council,31UH,HRAHRM,Housing Repairs,HRA Housing Repairs & Maintenance,Housing repairs,"1,340.32",1295890,12/11/2014,A031787,Laker BMS Ltd
North West Leicestershire District Council,31UH,HRAHRM,Housing Repairs,HRA Housing Repairs & Maintenance,Housing repairs,"1,932.47",1295892,12/11/2014,A031787,Laker BMS Ltd
North West Leicestershire District Council,31UH,HRAHRM,Housing Repairs,HRA Housing Repairs & Maintenance,Housing repairs,"1,617.72",1295895,12/11/2014,A031787,Laker BMS Ltd
North West Leicestershire District Council,31UH,HRAHRM,Housing Repairs,HRA Housing Repairs & Maintenance,Boiler - Gas,622.33,1295911,12/11/2014,A026237,British Gas Trading Limited
North West Leicestershire District Council,31UH,HRAHRM,Housing Repairs,HRA Housing Repairs & Maintenance,Housing repairs,"1,332.24",1295897,12/11/2014,A031787,Laker BMS Ltd
North West Leicestershire District Council,31UH,HRAHRM,Housing Repairs,HRA Housing Repairs & Maintenance,Housing repairs,"1,446.70",1295898,12/11/2014,A031787,Laker BMS Ltd
North West Leicestershire District Council,31UH,HRAHRM,Housing Repairs,HRA Housing Repairs & Maintenance,Housing repairs,"4,736.12",1295901,12/11/2014,A031787,Laker BMS Ltd
North West Leicestershire District Council,31UH,HRAHRM,Housing Repairs,HRA Housing Repairs & Maintenance,Housing repairs,711.63,1295902,12/11/2014,A031787,Laker BMS Ltd
North West Leicestershire District Council,31UH,HRAHRM,Housing Repairs,HRA Housing Repairs & Maintenance,House Cleaning and Removals,"1,604.56",1296328,19/11/2014,A031086,Premier Waste and Recycling
North West Leicestershire District Council,31UH,HRAHRM,Housing Repairs,HRA Housing Repairs & Maintenance,House Cleaning and Removals,"1,355.46",1296329,19/11/2014,A031086,Premier Waste and Recycling
North West Leicestershire District Council,31UH,HRAHRM,Housing Repairs,HRA Housing Repairs & Maintenance,Lidt Maintenance,549.38,1296311,19/11/2014,A001152,Morris Vermaport Limited
North West Leicestershire District Council,31UH,HRAHRM,Housing Repairs,HRA Housing Repairs & Maintenance,Housing repairs,738.82,1297169,26/11/2014,A031787,Laker BMS Ltd
North West Leicestershire District Council,31UH,HRAHRM,Housing Repairs,HRA Housing Repairs & Maintenance,Housing repairs,847.16,1297177,26/11/2014,A031787,Laker BMS Ltd
North West Leicestershire District Council,31UH,ICT,Information Technology,ICT Services,Admin Equipment - Hire/Rental,577.39,1295401,05/11/2014,A001092,John Merison BMC
North West Leicestershire District Council,31UH,ENOT,Street Management,Environment Transport,Repairs - Parts,876.80,1295375,05/11/2014,A000625,Ford & Slater Group Ltd
North West Leicestershire District Council,31UH,CULTEV,Leisure & Culture,Cultural Services Arts & Events,Civic Functions,575.00,1294347,05/11/2014,A041755,Foxwood Trading Company Ltd
North West Leicestershire District Council,31UH,ESS,Street Management,Environment - Street Scene,Air Quality Strategy,"7,980.00",1295349,05/11/2014,A036596,TRL
North West Leicestershire District Council,31UH,ICT,Information Technology,ICT Services,Admin Equipment - Maintenance,894.00,1295346,05/11/2014,A023640,Nviron Limited
North West Leicestershire District Council,31UH,ENOWM,Street Management,Environment Waste Management,Machinery & Equipment,"3,000.00",1295545,05/11/2014,A041243,Whitespace Work Software Ltd
North West Leicestershire District Council,31UH,HPLC,Leisure Centres,Hood Park Leisure Centre,Miscellaneous Insurances,"5,802.18",1295436,05/11/2014,A002200,Ivanhoe College
North West Leicestershire District Council,31UH,NACCS,Neighbourhoods & Communities,N & C Community Safety,Expenditure against earmarked reserve,834.00,1295441,05/11/2014,A040709,Warning Zone Ltd
North West Leicestershire District Council,31UH,CHEX,Chief Exec,Chief Executive,Contributions,"8,000.00",1295407,05/11/2014,A000935,Leicester City Council
North West Leicestershire District Council,31UH,ENOT,Street Management,Environment Transport,Repairs - Parts,514.10,1295411,05/11/2014,A037502,John C Knight
North West Leicestershire District Council,31UH,HPBC,Leisure Centres,Hood Park Bar and Catering,Vending Machine Provisions,535.37,1295445,05/11/2014,A001264,Palmer Harvey Mclane Ltd
North West Leicestershire District Council,31UH,ENOT,Street Management,Environment Transport,Purchases,"16,168.57",1295451,05/11/2014,A040946,Hall Fuels (Division of Watson Petroleum
North West Leicestershire District Council,31UH,PROPCL,Property Services,Property Commercial Lettings,Postages,"2,020.00",1295474,05/11/2014,A008204,Purchase Power
North West Leicestershire District Council,31UH,ENOT,Street Management,Environment Transport,Transport Costs - Tyres,"1,030.00",1295456,05/11/2014,A035175,Malvern Tyres
North West Leicestershire District Council,31UH,ICT,Information Technology,ICT Services,Admin Equipment - Maintenance,"4,162.00",1295540,05/11/2014,A039730,Infosec Cloud Ltd
North West Leicestershire District Council,31UH,ICT,Information Technology,ICT Services,Admin Equipment - Maintenance,"21,576.00",1295562,05/11/2014,A039730,Infosec Cloud Ltd
North West Leicestershire District Council,31UH,ICT,Information Technology,ICT Services,Admin Equipment - Maintenance,"10,013.00",1295447,05/11/2014,A040684,Ultra Electronics AEP Payments Ltd
North West Leicestershire District Council,31UH,ENOT,Street Management,Environment Transport,Purchases,555.80,1295450,12/11/2014,A037391,Emo Oil Limited
North West Leicestershire District Council,31UH,ENOWM,Street Management,Environment Waste Management,Publicity & Promotion,"2,750.00",1295471,12/11/2014,A000434,Crestline Printers Limited
North West Leicestershire District Council,31UH,ENOP,Street Management,Environment Parks,Asset Protection,965.00,1295539,12/11/2014,A030438,White Young Green Environmental Ltd
North West Leicestershire District Council,31UH,HLC,Leisure Centres,Hermitage Leisure Centre,Publicity & Promotion,720.41,1295658,12/11/2014,A037238,Leicestershire County Council Central Pr
North West Leicestershire District Council,31UH,ESS,Street Management,Environment - Street Scene,Operational Equipment,"1,095.16",1295662,12/11/2014,A028996,Metric Group Ltd (Sales)
North West Leicestershire District Council,31UH,SPA,Leisure & Culture,Sport & Physical Activity,Sports Alliance Funding Payment,"1,421.50",1295646,05/11/2014,A041873,Charnwood College
North West Leicestershire District Council,31UH,SPA,Leisure & Culture,Sport & Physical Activity,Other Miscellaneous Expenses,"1,110.00",1295647,05/11/2014,A029490,King Edward VII Science & Sport
North West Leicestershire District Council,31UH,CP,Communications,Corporate - Communications,Operational Equipment,720.00,1295397,12/11/2014,A000370,Coalville Signs
North West Leicestershire District Council,31UH,HRATP,Housing,HRA Tenant Participation,Tenants Scrutiny Panel,574.00,1295681,12/11/2014,A025151,Probrand Limited
North West Leicestershire District Council,31UH,FINPLA,Finance,Financial Planning,Audit Commision Fees - Grant Claims,"4,600.00",1295687,12/11/2014,A035156,KPMG LLP
North West Leicestershire District Council,31UH,ENOP,Street Management,Environment Parks,External Materials,"1,022.74",1295692,12/11/2014,A013933,Grangewood Fencing Supplies Limited
North West Leicestershire District Council,31UH,ICT,Information Technology,ICT Services,Admin Equipment - Maintenance,"2,197.50",1295719,12/11/2014,A034753,ANS Group Plc
North West Leicestershire District Council,31UH,CHEX,Chief Exec,Chief Executive,Interim Support,908.10,1295695,12/11/2014,A041465,Cambridgeshire County Council
North West Leicestershire District Council,31UH,CULTEV,Leisure & Culture,Cultural Services Arts & Events,National Forest & Beyond Partnership,"9,000.00",1295696,12/11/2014,A027538,The National Forest Company
North West Leicestershire District Council,31UH,CDCC,Leisure Centres,Castle Donington Community College,Alternative Fitness Suite,505.72,1295745,12/11/2014,A005413,Elliott Group Limited
North West Leicestershire District Council,31UH,CDCC,Leisure Centres,Castle Donington Community College,Alternative Fitness Suite,522.58,1295746,12/11/2014,A005413,Elliott Group Limited
North West Leicestershire District Council,31UH,ENOT,Street Management,Environment Transport,Operational Equipment,941.67,1295740,12/11/2014,A000757,Henton & Chattell Limited
North West Leicestershire District Council,31UH,HPLC,Leisure Centres,Hood Park Leisure Centre,General Repairs,"19,247.64",1295771,12/11/2014,A030378,Abacus Lighting Limited
North West Leicestershire District Council,31UH,HRAHRM,Housing Repairs,HRA Housing Repairs & Maintenance,Protective Clothing,841.84,1295963,12/11/2014,A009933,Westbury Industrial Supplies
North West Leicestershire District Council,31UH,SPA,Leisure & Culture,Sport & Physical Activity,Sports Alliance Funding Payment,"28,672.50",1294106,12/11/2014,A029490,King Edward VII Science & Sport
North West Leicestershire District Council,31UH,ENOT,Street Management,Environment Transport,General Repairs,"1,252.00",1295917,12/11/2014,A000548,Electract Limited
North West Leicestershire District Council,31UH,HRAPBS,Housing,HRA Performance & Business Support,Expenditure against earmarked reserve,"1,850.00",1295969,12/11/2014,A035213,PIMSS Data Systems
North West Leicestershire District Council,31UH,ENOP,Street Management,Environment Parks,Operational Equipment - Purchases,539.00,1295972,12/11/2014,A000940,Aggregate Industries Uk Ltd
North West Leicestershire District Council,31UH,PROPCL,Property Services,Property Commercial Lettings,General Repairs,583.20,1295986,12/11/2014,A030887,T Denman & Sons (Melton Mowbray) Ltd
North West Leicestershire District Council,31UH,ICT,Information Technology,ICT Services,Admin Equipment - Maintenance,"1,824.58",1295989,12/11/2014,A032826,Freedom Communications (UK) Ltd
North West Leicestershire District Council,31UH,EDC,Planning & Development,Environment - Development Control,Advertising,529.14,1295923,12/11/2014,A001395,Euro RSCG People T/A Havas People Ltd
North West Leicestershire District Council,31UH,EDC,Planning & Development,Environment - Development Control,Advertising,529.14,1295924,12/11/2014,A001395,Euro RSCG People T/A Havas People Ltd
North West Leicestershire District Council,31UH,ENOP,Street Management,Environment Parks,Operational Equipment - Purchases,"1,237.00",1295458,19/11/2014,A038547,Cyril John Decorators Limited
North West Leicestershire District Council,31UH,HLC,Leisure Centres,Hermitage Leisure Centre,Contract Payments (Other) Ext,"8,052.00",1295739,19/11/2014,A016357,Dura-Sport (Leisure Care) Ltd
North West Leicestershire District Council,31UH,HS,Housing Strategy,Community - Housing Strategy,Housing Needs Survey,"3,500.00",1296074,19/11/2014,A035392,Hometrack Data Systems HDS Ltd
North West Leicestershire District Council,31UH,ENOGT,Street Management,Environment General Technician,Routine Ground Maintenance,"1,740.00",1296138,19/11/2014,A025765,Contract Sign Systems
North West Leicestershire District Council,31UH,CHEX,Chief Exec,Chief Executive,External Legal Fees & Advice,"1,511.90",1296143,19/11/2014,A041332,Sharp Planning Plus Ltd
North West Leicestershire District Council,31UH,ESS,Street Management,Environment - Street Scene,Operational Equipment,"2,545.08",1296169,19/11/2014,A035398,Chipside Limited
North West Leicestershire District Council,31UH,EPP,Planning & Development,Environment Planning Policy,Local Development Framework,520.00,1296170,19/11/2014,A041693,Atkins Ltd
North West Leicestershire District Council,31UH,ECCTV,Planning & Development,Environment - Town Centre/CCTV,Agency Staff,"4,028.99",1296189,19/11/2014,A038132,Premier Security Services (Midlands) Lim
North West Leicestershire District Council,31UH,ENOT,Street Management,Environment Transport,Operational Equipment - Purchases,"2,513.50",1296191,19/11/2014,A041824,Coventry Business Managers Ltd
North West Leicestershire District Council,31UH,HRAPBS,Housing,HRA Performance & Business Support,Agency Staff,"1,465.63",1296241,19/11/2014,A041893,Michael Page International Recruitment Ltd
North West Leicestershire District Council,31UH,HRAPBS,Housing,HRA Performance & Business Support,Agency Staff,"1,432.13",1296247,19/11/2014,A041893,Michael Page International Recruitment Ltd
North West Leicestershire District Council,31UH,HRAPBS,Housing,HRA Performance & Business Support,Agency Staff,"1,465.63",1296239,19/11/2014,A041893,Michael Page International Recruitment Ltd
North West Leicestershire District Council,31UH,HRAPBS,Housing,HRA Performance & Business Support,Agency Staff,"6,901.00",1296240,19/11/2014,A041893,Michael Page International Recruitment Ltd
North West Leicestershire District Council,31UH,ESS,Street Management,Environment - Street Scene,Subscriptions,825.00,1296199,19/11/2014,A027750,CIEH
North West Leicestershire District Council,31UH,HRAHRM,Housing Repairs,HRA Housing Repairs & Maintenance,Derv,"13,365.12",1296280,19/11/2014,A000951,Leicestershire County Counc
North West Leicestershire District Council,31UH,HR,Corporate Director,Human Resources,Purchases,"4,137.00",1296308,19/11/2014,A035521,PES Limited
North West Leicestershire District Council,31UH,HLC,Leisure Centres,Hermitage Leisure Centre,Measham LC Lifestyle DD,"2,116.65",1296213,19/11/2014,A027454,Measham Leisure Centre
North West Leicestershire District Council,31UH,CHEX,Chief Exec,Chief Executive,Interim Support,"1,549.30",1296248,19/11/2014,A040743,Janice Milsom
North West Leicestershire District Council,31UH,ENOT,Street Management,Environment Transport,Purchases,679.91,1296262,19/11/2014,A035175,Malvern Tyres
North West Leicestershire District Council,31UH,EEHL,Environmental Health,Environmental Health & Licensing,Vet Inspection,753.27,1296263,19/11/2014,A033670,Eville And Jones
North West Leicestershire District Council,31UH,CULTEV,Leisure & Culture,Cultural Services Arts & Events,Other Miscellaneous Expenses,791.00,1296277,19/11/2014,A034118,Animal Enterprises
North West Leicestershire District Council,31UH,HRAPBS,Housing,HRA Performance & Business Support,Agency Staff,"1,457.25",1296787,19/11/2014,A041893,Michael Page International Recruitment Ltd
North West Leicestershire District Council,31UH,FINPLA,Finance,Financial Planning,Audit Commision Fees,"20,683.00",1295359,19/11/2014,A035156,KPMG LLP
North West Leicestershire District Council,31UH,ENOP,Street Management,Environment Parks,Asset Protection,"1,104.58",1295933,19/11/2014,A028430,Leicestershire County Council
North West Leicestershire District Council,31UH,ENOP,Street Management,Environment Parks,Asset Protection,"2,007.96",1295934,19/11/2014,A028430,Leicestershire County Council
North West Leicestershire District Council,31UH,ESS,Street Management,Environment - Street Scene,Stationery,"1,907.20",1295990,19/11/2014,A035478,Nagels UK Limited
North West Leicestershire District Council,31UH,SPA,Leisure & Culture,Sport & Physical Activity,LSA - SPORTS AWARDS,751.83,1296160,19/11/2014,A000375,Coalville Trophy Centre
North West Leicestershire District Council,31UH,ENOT,Street Management,Environment Transport,Purchases,"18,228.60",1296814,19/11/2014,A040946,Hall Fuels (Division of Watson Petroleum
North West Leicestershire District Council,31UH,ESS,Street Management,Environment - Street Scene,Stationery,675.00,1295459,19/11/2014,A001291,Pegg Print (L G Pegg)
North West Leicestershire District Council,31UH,PROPFM,Property Services,Property Facilities Management,Legal & Professional Services,644.40,1296131,19/11/2014,A034291,Valuation Office Agency
North West Leicestershire District Council,31UH,NACCS,Neighbourhoods & Communities,N & C Community Safety,Computer Software Maintenance,500.00,1296883,26/11/2014,A007096,The OPCC for Leicestershire
North West Leicestershire District Council,31UH,ECCTV,Planning & Development,Environment - Town Centre/CCTV,General Repairs,720.00,1296255,26/11/2014,A038408,London Fire Consultants & Design
North West Leicestershire District Council,31UH,PROPFM,Property Services,Property Facilities Management,Routine Ground Maintenance,"12,808.82",1296846,26/11/2014,A015236,G F Tomlinson Building Ltd
North West Leicestershire District Council,31UH,ENOT,Street Management,Environment Transport,Operational Equipment,645.00,1296857,26/11/2014,A041820,Transport Support Ltd
North West Leicestershire District Council,31UH,ENOT,Street Management,Environment Transport,Operational Equipment,"1,730.00",1296858,26/11/2014,A032890,DR Baling Wire Manufacturers Ltd
North West Leicestershire District Council,31UH,ENOT,Street Management,Environment Transport,Gas,944.03,1296888,26/11/2014,A032686,Calor Gas Limited
North West Leicestershire District Council,31UH,ENOP,Street Management,Environment Parks,External Materials,800.00,1296889,26/11/2014,A041796,Richard Bailey Plant & Construction Ltd
North West Leicestershire District Council,31UH,HRAHRM,Housing Repairs,HRA Housing Repairs & Maintenance,Other Pooled Transport,"2,107.69",1296145,26/11/2014,A036773,Edstrom of Sweden
North West Leicestershire District Council,31UH,CP,Communications,Corporate - Communications,Vision - printing and distribution,515.31,1296843,26/11/2014,A041895,Hopwood Public Relations
North West Leicestershire District Council,31UH,ENOWM,Street Management,Environment Waste Management,Expenditure against earmarked reserve,"1,000.00",1296898,26/11/2014,A041243,Whitespace Work Software Ltd
North West Leicestershire District Council,31UH,EBC,Planning & Development,Building Control,Fees - L.C.C.,"2,898.00",1296901,26/11/2014,A027423,Leicestershire County Council
North West Leicestershire District Council,31UH,CHEX,Chief Exec,Chief Executive,External Legal Fees & Advice,840.00,1296915,26/11/2014,A041694,Edwards & Edwards Consultancy Ltd
North West Leicestershire District Council,31UH,CHEX,Chief Exec,Chief Executive,External Legal Fees & Advice,"1,440.00",1296916,26/11/2014,A041694,Edwards & Edwards Consultancy Ltd
North West Leicestershire District Council,31UH,HLC,Leisure Centres,Hermitage Leisure Centre,Charges - Miscellaneous Events,"1,112.29",1296991,26/11/2014,A000950,Leicestershire County Council
North West Leicestershire District Council,31UH,ENOWM,Street Management,Environment Waste Management,Machinery & Equipment,"1,000.00",1297050,26/11/2014,A041243,Whitespace Work Software Ltd
North West Leicestershire District Council,31UH,HRAPBS,Housing,HRA Performance & Business Support,Machinery & Equipment,"6,060.00",1297196,26/11/2014,A030931,Firmstep
North West Leicestershire District Council,31UH,HRAPBS,Housing,HRA Performance & Business Support,Machinery & Equipment,"3,530.00",1297197,26/11/2014,A030931,Firmstep
North West Leicestershire District Council,31UH,HRAPBS,Housing,HRA Performance & Business Support,Machinery & Equipment,"9,010.00",1297198,26/11/2014,A030931,Firmstep
North West Leicestershire District Council,31UH,HRAPBS,Housing,HRA Performance & Business Support,Machinery & Equipment,"5,050.00",1297199,26/11/2014,A030931,Firmstep
North West Leicestershire District Council,31UH,ICT,Information Technology,ICT Services,Consumable Materials,508.61,1296939,26/11/2014,A038178,Antalis Limited
North West Leicestershire District Council,31UH,HLC,Leisure Centres,Hermitage Leisure Centre,Subscriptions,950.00,1296959,26/11/2014,A038334,Quest & NBS
North West Leicestershire District Council,31UH,HLC,Leisure Centres,Hermitage Leisure Centre,Service Contracts,942.00,1294459,26/11/2014,A037677,Sterling Hydrotech Limited
North West Leicestershire District Council,31UH,EEHL,Environmental Health,Environmental Health & Licensing,Agency Staff,740.00,1296900,26/11/2014,A031571,HBHC Synergy Ltd
North West Leicestershire District Council,31UH,ENOT,Street Management,Environment Transport,Repairs - Parts,"1,779.16",1296949,26/11/2014,A001540,Spaldings (UK) Limited
North West Leicestershire District Council,31UH,PROPCL,Property Services,Property Commercial Lettings,Contract Cleaning,531.49,1296997,26/11/2014,A003037,Coalville Cleaning Services
North West Leicestershire District Council,31UH,ICT,Information Technology,ICT Services,Machinery & Equipment,"5,345.00",1297200,26/11/2014,A030931,Firmstep
North West Leicestershire District Council,31UH,ICT,Information Technology,ICT Services,Corporate IT Licences,"2,000.00",1297201,26/11/2014,A030931,Firmstep
North West Leicestershire District Council,31UH,PROPFM,Property Services,Property Facilities Management,General Repairs,500.00,1296987,26/11/2014,A030887,T Denman & Sons (Melton Mowbray) Ltd
North West Leicestershire District Council,31UH,ENOP,Street Management,Environment Parks,External Materials,"2,200.00",1296895,26/11/2014,A041796,Richard Bailey Plant & Construction Ltd
North West Leicestershire District Council,31UH,PROPCL,Property Services,Property Commercial Lettings,General Repairs,"2,688.00",1297047,26/11/2014,A030887,T Denman & Sons (Melton Mowbray) Ltd
North West Leicestershire District Council,31UH,CULTEV,Leisure & Culture,Cultural Services Arts & Events,Other Miscellaneous Expenses,"1,760.00",1297110,26/11/2014,A027592,Chameleon Pro Audio T/A Lux Technical Lt
North West Leicestershire District Council,31UH,ESS,Street Management,Environment - Street Scene,Subscriptions,"1,995.00",1297183,26/11/2014,A025681,Keep Britain Tidy
